{"text_format":"3","workbook":"xlsx","n_sheets":2,"sheets":["PU","CATALOGO"],"not_rendered":{"macros":1,"defined_names":2},"read":"whole","date_system":"1900"}

{"sheet":"PU","index":0,"n_rows":84,"n_cols":5,"rows_kept":84}
["1.1.1",9742.26,5.11,{"v":49782.95,"d":"49,782.95"},{"$f":"LETRAS(C1,1)","v":"CINCO PESOS 11/100 M.N."}]
["1.1.2",3411.99,20.96,{"v":71515.31,"d":"71,515.31"},{"$f":"LETRAS(C2,1)","v":"VEINTE PESOS 96/100 M.N."}]
["1.1.3",5867.82,36.64,{"v":214996.92,"d":"214,996.92"},"TREINTA Y SEIS PESOS 64/100 M.N."]
["1.1.4",8865.45,54.25,{"v":480950.66,"d":"480,950.66"},"CINCUENTA Y CUATRO PESOS 25/100 M.N."]
["1.1.5",9742.26,6.74,{"v":65662.83,"d":"65,662.83"},"SEIS PESOS 74/100 M.N."]
["1.2.1",9742.26,42.66,{"v":415604.81,"d":"415,604.81"},"CUARENTA Y DOS PESOS 66/100 M.N."]
["1.2.2",2922.68,220.78,{"v":645269.29,"d":"645,269.29"},"DOSCIENTOS VEINTE PESOS 78/100 M.N."]
["1.2.3",2922.68,36.62,{"v":107028.54,"d":"107,028.54"},"TREINTA Y SEIS PESOS 62/100 M.N."]
["1.2.4",1682.33,157.46,{"v":264899.68,"d":"264,899.68"},"CIENTO CINCUENTA Y SIETE PESOS 46/100 M.N."]
["1.2.5",{"v":1294.1,"d":"1294.10"},93.34,{"v":120791.29,"d":"120,791.29"},"NOVENTA Y TRES PESOS 34/100 M.N."]
["1.2.6",2532.98,356.88,{"v":903969.9,"d":"903,969.90"},"TRESCIENTOS CINCUENTA Y SEIS PESOS 88/100 M.N."]
["1.2.7",1948.45,120.65,{"v":235080.49,"d":"235,080.49"},"CIENTO VEINTE PESOS 65/100 M.N."]
["1.2.8",9742.26,23.08,{"v":224851.36,"d":"224,851.36"},"VEINTITRES PESOS 08/100 M.N."]
["1.2.9",9742.26,2.24,{"v":21822.66,"d":"21,822.66"},"DOS PESOS 24/100 M.N."]
["1.3.1",1114.91,148.31,{"v":165352.3,"d":"165,352.30"},"CIENTO CUARENTA Y OCHO PESOS 31/100 M.N."]
["1.3.2",3119.74,39.24,{"v":122418.6,"d":"122,418.60"},"TREINTA Y NUEVE PESOS 24/100 M.N."]
["1.3.3",{"v":744,"d":"744.00"},25.26,{"v":18793.44,"d":"18,793.44"},"VEINTICINCO PESOS 26/100 M.N."]
["1.3.4",{"v":36,"d":"36.00"},60.03,{"v":2161.08,"d":"2,161.08"},"SESENTA PESOS 03/100 M.N."]
["1.4.1",8627.35,8.56,{"v":73850.12,"d":"73,850.12"},"OCHO PESOS 56/100 M.N."]
["1.4.2",8627.35,229.72,{"v":1981874.84,"d":"1,981,874.84"},"DOSCIENTOS VEINTINUEVE PESOS 72/100 M.N."]
["1.5.1",{"v":145,"d":"145.00"},5.11,740.95,"CINCO PESOS 11/100 M.N."]
["1.5.2",{"v":145,"d":"145.00"},{"v":183.2,"d":"183.20"},{"v":26564,"d":"26,564.00"},"CIENTO OCHENTA Y TRES PESOS 20/100 M.N."]
["1.5.3",{"v":40,"d":"40.00"},{"v":1207.96,"d":"1,207.96"},{"v":48318.4,"d":"48,318.40"},"UN MIL DOSCIENTOS SIETE PESOS 96/100 M.N."]
["1.5.4",{"v":145,"d":"145.00"},54.25,{"v":7866.25,"d":"7,866.25"},"CINCUENTA Y CUATRO PESOS 25/100 M.N."]
["1.5.5",{"v":21,"d":"21.00"},{"v":20604.1,"d":"20,604.10"},{"v":432686.1,"d":"432,686.10"},"VEINTE MIL SEISCIENTOS CUATRO PESOS 10/100 M.N."]
["1.5.6",{"v":28,"d":"28.00"},60.03,{"v":1680.84,"d":"1,680.84"},"SESENTA PESOS 03/100 M.N."]
["1.6.1",{"v":42,"d":"42.00"},157.93,{"v":6633.06,"d":"6,633.06"},"CIENTO CINCUENTA Y SIETE PESOS 93/100 M.N."]
[5.1,{"v":1000,"d":"1000.00"},22.51,{"v":22510,"d":"22,510.00"},"VEINTIDOS PESOS 51/100 M.N."]
[2.1,{"v":960,"d":"960.00"},5.11,{"v":4905.6,"d":"4,905.60"},"CINCO PESOS 11/100 M.N."]
[2.2,{"v":392,"d":"392.00"},136.36,{"v":53453.12,"d":"53,453.12"},"CIENTO TREINTA Y SEIS PESOS 36/100 M.N."]
[2.3,{"v":960,"d":"960.00"},269.87,{"v":259075.2,"d":"259,075.20"},"DOSCIENTOS SESENTA Y NUEVE PESOS 87/100 M.N."]
[2.4,{"v":23030.8,"d":"23030.80"},39.24,{"v":903728.59,"d":"903,728.59"},"TREINTA Y NUEVE PESOS 24/100 M.N."]
[2.5,{"v":3200,"d":"3200.00"},56.19,{"v":179808,"d":"179,808.00"},"CINCUENTA Y SEIS PESOS 19/100 M.N."]
[2.6,{"v":448,"d":"448.00"},148.31,{"v":66442.88,"d":"66,442.88"},"CIENTO CUARENTA Y OCHO PESOS 31/100 M.N."]
[2.7,{"v":160,"d":"160.00"},14.54,{"v":2326.4,"d":"2,326.40"},"CATORCE PESOS 54/100 M.N."]
[2.8,{"v":82,"d":"82.00"},201.51,{"v":16523.82,"d":"16,523.82"},"DOSCIENTOS UNO PESOS 51/100 M.N."]
["3.1.1",2686.06,5.11,{"v":13725.77,"d":"13,725.77"},"CINCO PESOS 11/100 M.N."]
["3.1.2",941.69,20.96,{"v":19737.82,"d":"19,737.82"},"VEINTE PESOS 96/100 M.N."]
["3.1.3",470.36,36.64,{"v":17233.99,"d":"17,233.99"},"TREINTA Y SEIS PESOS 64/100 M.N."]
["3.1.4",1835.66,54.25,{"v":99584.56,"d":"99,584.56"},"CINCUENTA Y CUATRO PESOS 25/100 M.N."]
["3.1.5",2686.06,6.74,{"v":18104.04,"d":"18,104.04"},"SEIS PESOS 74/100 M.N."]
["3.2.1",2686.06,42.66,{"v":114587.32,"d":"114,587.32"},"CUARENTA Y DOS PESOS 66/100 M.N."]
["3.2.2",537.21,220.78,{"v":118605.22,"d":"118,605.22"},"DOSCIENTOS VEINTE PESOS 78/100 M.N."]
["3.2.3",537.21,36.62,{"v":19672.63,"d":"19,672.63"},"TREINTA Y SEIS PESOS 62/100 M.N."]
["3.2.4",523.78,157.46,{"v":82474.4,"d":"82,474.40"},"CIENTO CINCUENTA Y SIETE PESOS 46/100 M.N."]
["3.2.5",402.91,91.33,{"v":36797.77,"d":"36,797.77"},"NOVENTA Y UN PESOS 33/100 M.N."]
["3.2.6",698.37,356.88,{"v":249234.29,"d":"249,234.29"},"TRESCIENTOS CINCUENTA Y SEIS PESOS 88/100 M.N."]
["3.2.7",537.21,120.65,{"v":64814.39,"d":"64,814.39"},"CIENTO VEINTE PESOS 65/100 M.N."]
["3.2.8",2686.06,23.08,{"v":61994.26,"d":"61,994.26"},"VEINTITRES PESOS 08/100 M.N."]
["3.2.9",2686.06,2.24,{"v":6016.77,"d":"6,016.77"},"DOS PESOS 24/100 M.N."]
["3.3.1",2686.06,8.56,{"v":22992.67,"d":"22,992.67"},"OCHO PESOS 56/100 M.N."]
["3.3.2",2686.06,210.81,{"v":566248.31,"d":"566,248.31"},"DOSCIENTOS DIEZ PESOS 81/100 M.N."]
["4.1.1",{"v":1000,"d":"1000.00"},5.11,{"v":5110,"d":"5,110.00"},"CINCO PESOS 11/100 M.N."]
["4.1.2",{"v":300,"d":"300.00"},36.64,{"v":10992,"d":"10,992.00"},"TREINTA Y SEIS PESOS 64/100 M.N."]
["4.1.3",{"v":390,"d":"390.00"},54.25,{"v":21157.5,"d":"21,157.50"},"CINCUENTA Y CUATRO PESOS 25/100 M.N."]
["4.1.4",{"v":1000,"d":"1000.00"},6.74,{"v":6740,"d":"6,740.00"},"SEIS PESOS 74/100 M.N."]
["4.2.1",{"v":1000,"d":"1000.00"},42.66,{"v":42660,"d":"42,660.00"},"CUARENTA Y DOS PESOS 66/100 M.N."]
["4.2.2",{"v":300,"d":"300.00"},220.78,{"v":66234,"d":"66,234.00"},"DOSCIENTOS VEINTE PESOS 78/100 M.N."]
["4.2.3",{"v":300,"d":"300.00"},36.62,{"v":10986,"d":"10,986.00"},"TREINTA Y SEIS PESOS 62/100 M.N."]
["4.2.4",{"v":260,"d":"260.00"},356.88,{"v":92788.8,"d":"92,788.80"},"TRESCIENTOS CINCUENTA Y SEIS PESOS 88/100 M.N."]
["4.2.5",{"v":200,"d":"200.00"},120.65,{"v":24130,"d":"24,130.00"},"CIENTO VEINTE PESOS 65/100 M.N."]
["4.2.6",{"v":1000,"d":"1000.00"},23.08,{"v":23080,"d":"23,080.00"},"VEINTITRES PESOS 08/100 M.N."]
["4.2.7",{"v":1000,"d":"1000.00"},2.24,{"v":2240,"d":"2,240.00"},"DOS PESOS 24/100 M.N."]
["4.3.1",{"v":1000,"d":"1000.00"},148.31,{"v":148310,"d":"148,310.00"},"CIENTO CUARENTA Y OCHO PESOS 31/100 M.N."]
["4.3.2",{"v":2795,"d":"2795.00"},39.24,{"v":109675.8,"d":"109,675.80"},"TREINTA Y NUEVE PESOS 24/100 M.N."]
["4.3.3",{"v":640,"d":"640.00"},25.26,{"v":16166.4,"d":"16,166.40"},{"$f":"LETRAS(C66,1)","v":"VEINTICINCO PESOS 26/100 M.N."}]
["5.1.1",533.98,5.11,{"v":2728.64,"d":"2,728.64"},"CINCO PESOS 11/100 M.N."]
["5.1.2",186.07,20.96,{"v":3900.03,"d":"3,900.03"},"VEINTE PESOS 96/100 M.N."]
["5.1.3",73.61,36.64,{"v":2697.07,"d":"2,697.07"},"TREINTA Y SEIS PESOS 64/100 M.N."]
["5.1.4",337.58,54.25,{"v":18313.72,"d":"18,313.72"},"CINCUENTA Y CUATRO PESOS 25/100 M.N."]
["5.1.5",533.98,6.74,{"v":3599.03,"d":"3,599.03"},"SEIS PESOS 74/100 M.N."]
["5.2.1",533.98,42.66,{"v":22779.59,"d":"22,779.59"},"CUARENTA Y DOS PESOS 66/100 M.N."]
["5.2.2",106.79,220.78,{"v":23577.1,"d":"23,577.10"},"DOSCIENTOS VEINTE PESOS 78/100 M.N."]
["5.2.3",106.79,36.62,{"v":3910.65,"d":"3,910.65"},"TREINTA Y SEIS PESOS 62/100 M.N."]
["5.2.4",104.12,157.46,{"v":16394.74,"d":"16,394.74"},"CIENTO CINCUENTA Y SIETE PESOS 46/100 M.N."]
["5.2.5",{"v":80.1,"d":"80.10"},93.34,{"v":7476.53,"d":"7,476.53"},"NOVENTA Y TRES PESOS 34/100 M.N."]
["5.2.6",138.83,356.88,{"v":49545.65,"d":"49,545.65"},"TRESCIENTOS CINCUENTA Y SEIS PESOS 88/100 M.N."]
["5.2.7",106.79,120.65,{"v":12884.21,"d":"12,884.21"},"CIENTO VEINTE PESOS 65/100 M.N."]
["5.2.8",533.98,23.08,{"v":12324.26,"d":"12,324.26"},"VEINTITRES PESOS 08/100 M.N."]
["5.2.9",533.98,2.24,{"v":1196.12,"d":"1,196.12"},"DOS PESOS 24/100 M.N."]
["5.3.1",533.98,8.56,{"v":4570.87,"d":"4,570.87"},"OCHO PESOS 56/100 M.N."]
["5.3.2",533.98,210.81,{"v":112568.32,"d":"112,568.32"},"DOSCIENTOS DIEZ PESOS 81/100 M.N."]
[{"$nulls":3},{"$f":"TRUNC(B83*C83,2)","v":{"v":0,"d":"0.00"}}]
[{"$nulls":3},{"$f":"SUM(D1:D83)","v":{"v":10610501.520000001,"d":"10,610,501.52"}}]

{"sheet":"CATALOGO","index":1,"n_rows":114,"n_cols":8,"rows_kept":114}
[]
[null,"LICITACION:","MC-2317039-039"]
[null,"OBRA:","PRIMERA ETAPA DE PISTA DE ARRANCONES EN COMPLEJO GÓMEZ MORÍN EN CD. CUAUHTÉMOC CHIHUAHUA.   "]
[]
[]
["Capítulo",null,"PISTA DE ARRANCONES CD. CUAUHTEMOC, CHIH.",{"$nulls":4},{"$f":"H8+H44+H53+H73+H91","v":{"v":10610501.52,"d":"$10,610,501.52"}}]
["TIPO","CLAVE","DESCRIPCIÓN","UNIDAD","CANTIDAD","PRECIO UNITARIO","CON LETRA","TOTAL"]
["Subcapítulo",1,"   ÁREA DE PISTA",{"$nulls":4},{"$f":"H9+H15+H25+H30+H33+H40+H42","v":{"v":6733676.67,"d":"$6,733,676.67"}}]
["Nivel 3",1.1,"      PRELIMINARES",{"$nulls":4},{"$f":"SUM(H10:H14)","v":{"v":882908.6699999999,"d":"$882,908.67"}}]
["Concepto","1.1.1","         Trazo y nivelación de área a intervenir; Incluye: material, mano de obra, herramienta, y todo lo necesario para su correcta ejecución. (incluye: especificación particular y general).","m2",9742.26,{"$f":"IF(B10>0,VLOOKUP(B10,PU,3,0),0)","v":{"v":5.11,"d":"$5.11"}},{"$f":"IF(B10>0,VLOOKUP(B10,PU,5,0),0)","v":"CINCO PESOS 11/100 M.N."},{"$f":"IF(B10>0,VLOOKUP(B10,PU,4,0),0)","v":{"v":49782.95,"d":"$49,782.95"}}]
["Concepto","1.1.2","         Despalme por medios mecánicos, para albergar terracerias para mejoramiento de terreno, hasta una profundidad promedio de 0.35 m, incluye: mano de obra, herramienta, equipo, maquinaria y todo lo necesario para su correcta ejecución. (incluye: especificación particular y general).","m3",3411.99,{"$f":"IF(B11>0,VLOOKUP(B11,PU,3,0),0)","v":{"v":20.96,"d":"$20.96"}},{"$f":"IF(B11>0,VLOOKUP(B11,PU,5,0),0)","v":"VEINTE PESOS 96/100 M.N."},{"$f":"IF(B11>0,VLOOKUP(B11,PU,4,0),0)","v":{"v":71515.31,"d":"$71,515.31"}}]
["Concepto","1.1.3","         Corte por medios mecánicos, para albergar terracerias para mejoramiento de terreno, hasta una profundidad promedio de 0.40 m promedio incluye: material, mano de obra, herramienta, equipo y todo lo necesario para su correcta ejecución. (incluye: especificación particular y general).","m3",5867.82,{"$f":"IF(B12>0,VLOOKUP(B12,PU,3,0),0)","v":{"v":36.64,"d":"$36.64"}},{"$f":"IF(B12>0,VLOOKUP(B12,PU,5,0),0)","v":"TREINTA Y SEIS PESOS 64/100 M.N."},{"$f":"IF(B12>0,VLOOKUP(B12,PU,4,0),0)","v":{"v":214996.92,"d":"$214,996.92"}}]
["Concepto","1.1.4","         Carga y acarreo a tiro libre fuera de la obra de material producto de excavación, demoliciones, en camión, hasta una distancia promedio de 5 km. (incluye: especificación particular y general).","m3",8865.45,{"$f":"IF(B13>0,VLOOKUP(B13,PU,3,0),0)","v":{"v":54.25,"d":"$54.25"}},{"$f":"IF(B13>0,VLOOKUP(B13,PU,5,0),0)","v":"CINCUENTA Y CUATRO PESOS 25/100 M.N."},{"$f":"IF(B13>0,VLOOKUP(B13,PU,4,0),0)","v":{"v":480950.66,"d":"$480,950.66"}}]
["Concepto","1.1.5","         Limpieza durante y final de obra, incluye; mano de obra, equipo, herramientas, y todo lo necesario para su correcta ejecución. (incluye: especificación particular y general).","m2",9742.26,{"$f":"IF(B14>0,VLOOKUP(B14,PU,3,0),0)","v":{"v":6.74,"d":"$6.74"}},{"$f":"IF(B14>0,VLOOKUP(B14,PU,5,0),0)","v":"SEIS PESOS 74/100 M.N."},{"$f":"IF(B14>0,VLOOKUP(B14,PU,4,0),0)","v":{"v":65662.83,"d":"$65,662.83"}}]
["Nivel 3",1.2,"      TERRACERIAS",{"$nulls":4},{"$f":"SUM(H16:H24)","v":{"v":2939318.02,"d":"$2,939,318.02"}}]
["Concepto","1.2.1","         Tratamiento de terreno natural para formar un piso compacto en un espesor de 20 cm, incluye;  afine, sin escarificar, incorporación de humedad, eliminando las particulas mayores a 3\" y compactado al 95%  de su PVSM determinado mediante las pruebas PROCTOR o AASHTO según se requiera.  Supervisión y laboratorio sólo checarán y recibirán tramos completos en caso de ser calles aisladas. (incluye: especificación particular y general).","m2",9742.26,{"$f":"IF(B16>0,VLOOKUP(B16,PU,3,0),0)","v":{"v":42.66,"d":"$42.66"}},{"$f":"IF(B16>0,VLOOKUP(B16,PU,5,0),0)","v":"CUARENTA Y DOS PESOS 66/100 M.N."},{"$f":"IF(B16>0,VLOOKUP(B16,PU,4,0),0)","v":{"v":415604.81,"d":"$415,604.81"}}]
["Concepto","1.2.2","         Suministro de matacan de 2\" - 8\", espesor de 0.30 m, libre de particulas finas incluye; suministro, acarreos dentro de la obra necesarios para su correcta ejecución. (incluye: especificación particular y general).","m3",2922.68,{"v":220.78,"d":"$220.78"},"DOSCIENTOS VEINTE PESOS 78/100 M.N.",{"v":645269.29,"d":"$645,269.29"}]
["Concepto","1.2.3","         Tratamiento de matacan de 2\"- 8\" para zona de corte, incluye: afine, escarificación, incorporación de humedad, bandeo hasta lograr su acomodo y compactado al 95% de su PVSM determinado mediante las pruebas PROCTOR o AASHTO según se requiera. Supervisión y laboratorio sólo checarán y recibirán tramos completos. (incluye: especificación particular y general).","m3",2922.68,{"v":36.62,"d":"$36.62"},"TREINTA Y SEIS PESOS 62/100 M.N.",{"v":107028.54,"d":"$107,028.54"}]
["Concepto","1.2.4","         Suministro de sub-base hidráulica, espesor de 0.15 m, incluye: solo suministro puesto en obra medido suelto, de acuerdo a las normas vigentes S.C.T., A.S.T.M., Y NMX. (incluye: especificación particular y general).","m3",1682.33,{"v":157.46,"d":"$157.46"},"CIENTO CINCUENTA Y SIETE PESOS 46/100 M.N.",{"v":264899.68,"d":"$264,899.68"}]
["Concepto","1.2.5","         Tratamiento de sub-base hidráulica, incluye: afine, escarificación, incorporación de humedad y compactado al 100 % de su PVSM determinado mediante las pruebas PROCTOR o AASHTO según se requiera. Supervisión y laboratorio sólo checarán y recibirán tramos completos. (incluye: especificación particular y general).","m3",{"v":1294.1,"d":"1294.10"},{"v":93.34,"d":"$93.34"},"NOVENTA Y TRES PESOS 34/100 M.N.",{"v":120791.29,"d":"$120,791.29"}]
["Concepto","1.2.6","         Suministro de base hidráulica triturada, espesor de 0.20 m, incluye: solo suministro puesto en obra medido suelto, de acuerdo a las normas vigentes S.C.T., A.S.T.M., Y NMX. (incluye: especificación particular y general).","m3",2532.98,{"v":356.88,"d":"$356.88"},"TRESCIENTOS CINCUENTA Y SEIS PESOS 88/100 M.N.",{"v":903969.9,"d":"$903,969.90"}]
["Concepto","1.2.7","         Tratamiento de base hidráulica triturada, incluye: afine, escarificación, incorporación de humedad y compactado al 100 % de su PVSM determinado mediante las pruebas PROCTOR o AASHTO según se requiera. Supervisión y laboratorio sólo checarán y recibirán tramos completos. (incluye: especificación particular y general).","m3",1948.45,{"v":120.65,"d":"$120.65"},"CIENTO VEINTE PESOS 65/100 M.N.",{"v":235080.49,"d":"$235,080.49"}]
["Concepto","1.2.8","         Impregnacion de la base con emulsion asfaltica de rompimiento lento a razon de 1.2 a 1.5 lt/m2. Incluye limpieza de superficie. (incluye: especificación particular y general).","m2",9742.26,{"v":23.08,"d":"$23.08"},"VEINTITRES PESOS 08/100 M.N.",{"v":224851.36,"d":"$224,851.36"}]
["Concepto","1.2.9","         Poreo a base de arena n° 8 en proporcion de 6 a 8 lt/m2, incluye; suministro, acarreos dentro de la obra necesarios para su correcta ejecución. (incluye: especificación particular y general).","m2",9742.26,{"v":2.24,"d":"$2.24"},"DOS PESOS 24/100 M.N.",{"v":21822.66,"d":"$21,822.66"}]
["Nivel 3",1.3,"      CARPETA DE CONCRETO",{"$nulls":4},{"$f":"SUM(H26:H29)","v":{"v":308725.42000000004,"d":"$308,725.42"}}]
["Concepto","1.3.1","         Tendido de carpeta de concreto hidráulico MR= 42.5 de 0.2032 m de espesor (8\") con un ancho de losa no mayor de 3.60 m, junta longitudinal con varilla corrugada de 1/2\" de 45 cm @ 60 cm, junta transversal aserrada a 1/3 del espesor de la losa de profundidad y la separación entre juntas no mayor de 24 espesores. (concreto suministrado por municipio), (incluye: especificación particular y general)."," m2",1114.91,{"$f":"IF(B26>0,VLOOKUP(B26,PU,3,0),0)","v":{"v":148.31,"d":"$148.31"}},{"$f":"IF(B26>0,VLOOKUP(B26,PU,5,0),0)","v":"CIENTO CUARENTA Y OCHO PESOS 31/100 M.N."},{"$f":"IF(B26>0,VLOOKUP(B26,PU,4,0),0)","v":{"v":165352.3,"d":"$165,352.30"}}]
["Concepto","1.3.2","         Suministro y habilitado de acero de refuerzo del #3 @ 0.40m en ambos sentidos, para retícula para losa de concreto, incluye: Material, mano de obra, herramienta, equipo, limpieza del lugar de trabajo, y todo lo necesario para su correcta ejecución. (incluye: especificación particular y general).","kg",3119.74,{"$f":"IF(B27>0,VLOOKUP(B27,PU,3,0),0)","v":{"v":39.24,"d":"$39.24"}},{"$f":"IF(B27>0,VLOOKUP(B27,PU,5,0),0)","v":"TREINTA Y NUEVE PESOS 24/100 M.N."},{"$f":"IF(B27>0,VLOOKUP(B27,PU,4,0),0)","v":{"v":122418.6,"d":"$122,418.60"}}]
["Concepto","1.3.3","         Corte y sellado de juntas en concreto aserrada a 1/3 del espesor de la losa de profundidad, separación entre juntas no mayor de 22 espesores en ambos sentidos, colocación de cola de rata 1/4\" a una profundidad de 2.0\" aplicacion de Sellador Ultralastic de 2 componentes catalizado, autonivelante, mca. Comex. Incluye: aspirado, limpieza, corte, retiro de exceso, materiales, mano de obra y lo necesario para su correcta construcción. (incluye: especificación particular y general)."," m",{"v":744,"d":"744.00"},{"$f":"IF(B28>0,VLOOKUP(B28,PU,3,0),0)","v":{"v":25.26,"d":"$25.26"}},{"$f":"IF(B28>0,VLOOKUP(B28,PU,5,0),0)","v":"VEINTICINCO PESOS 26/100 M.N."},{"$f":"IF(B28>0,VLOOKUP(B28,PU,4,0),0)","v":{"v":18793.44,"d":"$18,793.44"}}]
["Concepto","1.3.4","         Construcción de dentellón de 100 lts/ml, Incluye; excavación en material \"B-C 70-30\", afine, cimbrado y colado. (ESP-01)(ESP-02)(ESP-03) (concreto suministrado por municipio). (incluye: especificación particular y general)."," m",{"v":36,"d":"36.00"},{"$f":"IF(B29>0,VLOOKUP(B29,PU,3,0),0)","v":{"v":60.03,"d":"$60.03"}},{"$f":"IF(B29>0,VLOOKUP(B29,PU,5,0),0)","v":"SESENTA PESOS 03/100 M.N."},{"$f":"IF(B29>0,VLOOKUP(B29,PU,4,0),0)","v":{"v":2161.08,"d":"$2,161.08"}}]
["Nivel 3",1.4,"      CARPETA ASFALTICA",{"$nulls":4},{"$f":"SUM(H31:H32)","v":{"v":2055724.96,"d":"$2,055,724.96"}}]
["Concepto","1.4.1","         Riego de liga a base de emulsión asfáltica rr-2k de acuerdo a normas s.c.t. vigentes (0.3 a 0.5) lts/m2, el cual podrá variar en función de las condiciones de la superficie por tender. (incluye: especificación particular y general).","m2",8627.35,{"$f":"IF(B31>0,VLOOKUP(B31,PU,3,0),0)","v":{"v":8.56,"d":"$8.56"}},{"$f":"IF(B31>0,VLOOKUP(B31,PU,5,0),0)","v":"OCHO PESOS 56/100 M.N."},{"$f":"IF(B31>0,VLOOKUP(B31,PU,4,0),0)","v":{"v":73850.12,"d":"$73,850.12"}}]
["Concepto","1.4.2","         Suministro y colocación de carpeta asfáltica elaborada en planta, con cemento asfaltico PG 70-22 y agregado triturado calizo total máximo de 1\" a finos de 5.0 cms de espesor compactados, 95% de su p.v.s.m., de acuerdo a las normas vigentes de la s.c.t. incluye; limpieza del tramo, nivelación con GPS e hilos de guia, tirada en carpetas de 4 m de ancho cada una con su longitud total, nivel de tolerancia de falla estricto de acuerdo a niveles y tendido de carpeta. (incluye: especificación particular y general).","m2",8627.35,{"$f":"IF(B32>0,VLOOKUP(B32,PU,3,0),0)","v":{"v":229.72,"d":"$229.72"}},{"$f":"IF(B32>0,VLOOKUP(B32,PU,5,0),0)","v":"DOSCIENTOS VEINTINUEVE PESOS 72/100 M.N."},{"$f":"IF(B32>0,VLOOKUP(B32,PU,4,0),0)","v":{"v":1981874.84,"d":"$1,981,874.84"}}]
["Nivel 3",1.5,"      PUENTE",{"$nulls":4},{"$f":"SUM(H34:H39)","v":{"v":517856.54,"d":"$517,856.54"}}]
["Concepto","1.5.1","         Trazo y nivelación de área a intervenir; Incluye: material, mano de obra, herramienta, y todo lo necesario para su correcta ejecución. (incluye: especificación particular y general).","m2",{"v":145,"d":"145.00"},{"$f":"IF(B34>0,VLOOKUP(B34,PU,3,0),0)","v":{"v":5.11,"d":"$5.11"}},{"$f":"IF(B34>0,VLOOKUP(B34,PU,5,0),0)","v":"CINCO PESOS 11/100 M.N."},{"$f":"IF(B34>0,VLOOKUP(B34,PU,4,0),0)","v":{"v":740.95,"d":"$740.95"}}]
["Concepto","1.5.2","         Limpieza de tramo de arroyo con maquinaria, a una altura de 1.00 m de acuerdo a niveles, incluye: herramienta, equipo, maquinaria, mano de obra, así como todo lo necesario para su correcta ejecución. (incluye: especificación particular y general).","m2",{"v":145,"d":"145.00"},{"v":183.2,"d":"$183.20"},"CIENTO OCHENTA Y TRES PESOS 20/100 M.N.",{"v":26564,"d":"$26,564.00"}]
["Concepto","1.5.3","         Retiro de árboles endémicos existentes dentro de cause del Rio con un diámetro de tronco promedio de 10\", una altura promedio de 15 metros, con follaje extendido, incluye: herramienta, equipo, maquinaria, mano de obra, así como todo lo necesario para su correcta ejecución. (incluye: especificación particular y general).","pza",{"v":40,"d":"40.00"},{"v":1207.96,"d":"$1,207.96"},"UN MIL DOSCIENTOS SIETE PESOS 96/100 M.N.",{"v":48318.4,"d":"$48,318.40"}]
["Concepto","1.5.4","         Carga y acarreo a tiro libre fuera de la obra de material producto de excavación, demoliciones, en camión, hasta una distancia promedio de 5 km. (incluye: especificación particular y general).","m3",{"v":145,"d":"145.00"},{"v":54.25,"d":"$54.25"},"CINCUENTA Y CUATRO PESOS 25/100 M.N.",{"v":7866.25,"d":"$7,866.25"}]
["Concepto","1.5.5","         Suministro y colocación de puente media luna baja de concreto prefabricadas de 83\" x 40\" x 96\", peso de 4300 kg por pieza, Incluye: material, mano de obra, herramienta, y todo lo necesario para su correcta ejecución. (incluye: especificación particular y general).","pza",{"v":21,"d":"21.00"},{"v":20604.1,"d":"$20,604.10"},"VEINTE MIL SEISCIENTOS CUATRO PESOS 10/100 M.N.",{"v":432686.1,"d":"$432,686.10"}]
["Concepto","1.5.6","         Construcción de dentellón de 100 lts/ml, Incluye; excavación en material \"B-C 70-30\", afine, cimbrado y colado. (ESP-01)(ESP-02)(ESP-03), (concreto suministrado por municipio). (incluye: especificación particular y general)."," m",{"v":28,"d":"28.00"},{"v":60.03,"d":"$60.03"},"SESENTA PESOS 03/100 M.N.",{"v":1680.84,"d":"$1,680.84"}]
["Nivel 3",1.6,"      DUCTO PREPARACIÓN PASO ELÉCTRICO",{"$nulls":4},{"$f":"SUM(H41:H41)","v":{"v":6633.06,"d":"$6,633.06"}}]
["Concepto","1.6.1","         Tubo pad corrugado de 4\" para paso de cableado eléctrico únicamente tubo dejando cubiertas la puntas para su posterior apertura, dejando las líneas instaladas antes de colocar carpeta de asfalto o concreto, encofrado en encofrado de arena con una capa superior de concreto pobre f´c= 100 kg/cm2, Incluye: material, mano de obra, herramienta, y todo lo necesario para su correcta ejecución. (incluye: especificación particular y general).","m",{"v":42,"d":"42.00"},{"$f":"IF(B41>0,VLOOKUP(B41,PU,3,0),0)","v":{"v":157.93,"d":"$157.93"}},{"$f":"IF(B41>0,VLOOKUP(B41,PU,5,0),0)","v":"CIENTO CINCUENTA Y SIETE PESOS 93/100 M.N."},{"$f":"IF(B41>0,VLOOKUP(B41,PU,4,0),0)","v":{"v":6633.06,"d":"$6,633.06"}}]
["Nivel 3",1.7,"      MARCAS EN PISTA",{"$nulls":4},{"$f":"SUM(H43:H43)","v":{"v":22510,"d":"$22,510.00"}}]
["Concepto",5.1,"         Suministro y aplicación de raya color blanco y/o amarilla, mca. Comex o similar, continua sencilla para delimitar carriles,  de 10 cm de ancho a base de pintura para trafico color blanco y/o amarillo reflejante, incluye: materiales, mano de obra, equipo y herramienta. P.U.O.T. (incluye: especificación particular y general)."," m",{"v":1000,"d":"1000.00"},{"$f":"IF(B43>0,VLOOKUP(B43,PU,3,0),0)","v":{"v":22.51,"d":"$22.51"}},{"$f":"IF(B43>0,VLOOKUP(B43,PU,5,0),0)","v":"VEINTIDOS PESOS 51/100 M.N."},{"$f":"IF(B43>0,VLOOKUP(B43,PU,4,0),0)","v":{"v":22510,"d":"$22,510.00"}}]
["Subcapítulo",2,"   MURO DE PROETCCIÓN",{"$nulls":4},{"$f":"SUM(H45:H52)","v":{"v":1486263.61,"d":"$1,486,263.61"}}]
["Concepto",2.1,"      Trazo y nivelación de área a intervenir; Incluye: material, mano de obra, herramienta, y todo lo necesario para su correcta ejecución. (incluye: especificación particular y general).","m2",{"v":960,"d":"960.00"},{"$f":"IF(B45>0,VLOOKUP(B45,PU,3,0),0)","v":{"v":5.11,"d":"$5.11"}},{"$f":"IF(B45>0,VLOOKUP(B45,PU,5,0),0)","v":"CINCO PESOS 11/100 M.N."},{"$f":"IF(B45>0,VLOOKUP(B45,PU,4,0),0)","v":{"v":4905.6,"d":"$4,905.60"}}]
["Concepto",2.2,"      Excavación en material tipo \"b\" con uso de maquinaria retroexcavadora, hasta una profundidad máxima de 0.80 m con un ancho de 1.10 m, inc. trazo con cal, verificación de niveles, afine de taludes, fondos y traspaleo del material a un costado de la zanja. (incluye: especificación particular y general).","m3",{"v":392,"d":"392.00"},{"v":136.36,"d":"$136.36"},"CIENTO TREINTA Y SEIS PESOS 36/100 M.N.",{"v":53453.12,"d":"$53,453.12"}]
["Concepto",2.3,"      Plantilla de concreto hecho en obra, Fc 100 kg/cm2, de 5 cm de espesor, incluye: Material, mano de obra, herramienta, equipo, limpieza del lugar de trabajo, y todo lo necesario para su correcta ejecución. (incluye: especificación particular y general).","m2",{"v":960,"d":"960.00"},{"v":269.87,"d":"$269.87"},"DOSCIENTOS SESENTA Y NUEVE PESOS 87/100 M.N.",{"v":259075.2,"d":"$259,075.20"}]
["Concepto",2.4,"      Suministro y habilitado de acero de refuerzo del #3, incluye: Material, mano de obra, herramienta, equipo, limpieza del lugar de trabajo, y todo lo necesario para su correcta ejecución. (incluye: especificación particular y general).","kg",{"v":23030.8,"d":"23030.80"},{"v":39.24,"d":"$39.24"},"TREINTA Y NUEVE PESOS 24/100 M.N.",{"v":903728.59,"d":"$903,728.59"}]
["Concepto",2.5,"      Cimbra Y Des cimbra metálica para muro de contención, a base de lamina negra lisa de 3´x10´ (ft), con bastidor de perfil pc de 2\"x2\", en marco de sección de muro y 2 travesaños intermedios (a cada 0.75 m promedio), incluye; mano de obra, herramienta, equipo y todo lo necesario para su correcta ejecución. (incluye: especificación particular y general).","m2",{"v":3200,"d":"3200.00"},{"v":56.19,"d":"$56.19"},"CINCUENTA Y SEIS PESOS 19/100 M.N.",{"v":179808,"d":"$179,808.00"}]
["Concepto",2.6,"      Colado de concreto hidráulico MR= 42.5 en muro de contención, en secciones de 3.05 m (10 ft), incluye; mano de obra, herramienta, equipo y todo lo necesario para su correcta ejecución. (concreto suministrado por municipio). (incluye: especificación particular y general).","m3",{"v":448,"d":"448.00"},{"v":148.31,"d":"$148.31"},"CIENTO CUARENTA Y OCHO PESOS 31/100 M.N.",{"v":66442.88,"d":"$66,442.88"}]
["Concepto",2.7,"      Camisa a base de tubo de 4\" de pvc a cada 10 metros en muro de contención a nivel de asfalto para desague de pista, incluye: Material, mano de obra, herramienta, equipo, limpieza del lugar de trabajo, y todo lo necesario para su correcta ejecución. (incluye: especificación particular y general).","pza",{"v":160,"d":"160.00"},{"v":14.54,"d":"$14.54"},"CATORCE PESOS 54/100 M.N.",{"v":2326.4,"d":"$2,326.40"}]
["Concepto",2.8,"      Relleno de elementos de cimentación con material seleccionado producto de la excavación, compactado en capas no mayores de 20  cm. de espesor, Incluye: incorporación de humedad. (incluye: especificación particular y general).","m3",{"v":82,"d":"82.00"},{"v":201.51,"d":"$201.51"},"DOSCIENTOS UNO PESOS 51/100 M.N.",{"v":16523.82,"d":"$16,523.82"}]
["Subcapítulo",3,"   CARRIL DE RETORNO",{"$nulls":4},{"$f":"H54+H60+H70","v":{"v":1511824.2100000002,"d":"$1,511,824.21"}}]
["Nivel 3",3.1,"      PRELIMINARES",{"$nulls":4},{"$f":"SUM(H55:H59)","v":{"v":168386.18000000002,"d":"$168,386.18"}}]
["Concepto","3.1.1","         Trazo y nivelación de área a intervenir; Incluye: material, mano de obra, herramienta, y todo lo necesario para su correcta ejecución. (incluye: especificación particular y general).","m2",2686.06,{"$f":"IF(B55>0,VLOOKUP(B55,PU,3,0),0)","v":{"v":5.11,"d":"$5.11"}},{"$f":"IF(B55>0,VLOOKUP(B55,PU,5,0),0)","v":"CINCO PESOS 11/100 M.N."},{"$f":"IF(B55>0,VLOOKUP(B55,PU,4,0),0)","v":{"v":13725.77,"d":"$13,725.77"}}]
["Concepto","3.1.2","         Despalme por medios mecánicos, para albergar terracerias para mejoramiento de terreno, hasta una profundidad promedio de 0.35 m, incluye: mano de obra, herramienta, equipo, maquinaria y todo lo necesario para su correcta ejecución. (incluye: especificación particular y general).","m3",941.69,{"$f":"IF(B56>0,VLOOKUP(B56,PU,3,0),0)","v":{"v":20.96,"d":"$20.96"}},{"$f":"IF(B56>0,VLOOKUP(B56,PU,5,0),0)","v":"VEINTE PESOS 96/100 M.N."},{"$f":"IF(B56>0,VLOOKUP(B56,PU,4,0),0)","v":{"v":19737.82,"d":"$19,737.82"}}]
["Concepto","3.1.3","         Corte por medios mecánicos, para albergar terracerias para mejoramiento de terreno, hasta una profundidad promedio de 1.00 m, incluye: material, mano de obra, herramienta, equipo y todo lo necesario para su correcta ejecución. (incluye: especificación particular y general).","m3",470.36,{"$f":"IF(B57>0,VLOOKUP(B57,PU,3,0),0)","v":{"v":36.64,"d":"$36.64"}},{"$f":"IF(B57>0,VLOOKUP(B57,PU,5,0),0)","v":"TREINTA Y SEIS PESOS 64/100 M.N."},{"$f":"IF(B57>0,VLOOKUP(B57,PU,4,0),0)","v":{"v":17233.99,"d":"$17,233.99"}}]
["Concepto","3.1.4","         Carga y acarreo a tiro libre fuera de la obra de material producto de excavación, demoliciones, en camión, hasta una distancia promedio de 5 km. (incluye: especificación particular y general).","m3",1835.66,{"$f":"IF(B58>0,VLOOKUP(B58,PU,3,0),0)","v":{"v":54.25,"d":"$54.25"}},{"$f":"IF(B58>0,VLOOKUP(B58,PU,5,0),0)","v":"CINCUENTA Y CUATRO PESOS 25/100 M.N."},{"$f":"IF(B58>0,VLOOKUP(B58,PU,4,0),0)","v":{"v":99584.56,"d":"$99,584.56"}}]
["Concepto","3.1.5","         Limpieza durante y final de obra, incluye; mano de obra, equipo, herramientas, y todo lo necesario para su correcta ejecución. (incluye: especificación particular y general).","m2",2686.06,{"$f":"IF(B59>0,VLOOKUP(B59,PU,3,0),0)","v":{"v":6.74,"d":"$6.74"}},{"$f":"IF(B59>0,VLOOKUP(B59,PU,5,0),0)","v":"SEIS PESOS 74/100 M.N."},{"$f":"IF(B59>0,VLOOKUP(B59,PU,4,0),0)","v":{"v":18104.04,"d":"$18,104.04"}}]
["Nivel 3",3.2,"      TERRACERIAS",{"$nulls":4},{"$f":"SUM(H61:H69)","v":{"v":754197.05,"d":"$754,197.05"}}]
["Concepto","3.2.1","         Tratamiento de terreno natural para formar un piso compacto en un espesor de 20 cm, incluye;  afine, sin escarificar, incorporación de humedad, eliminando las particulas mayores a 3\" y compactado al 95%  de su PVSM determinado mediante las pruebas PROCTOR o AASHTO según se requiera.  Supervisión y laboratorio sólo checarán y recibirán tramos completos en caso de ser calles aisladas. (incluye: especificación particular y general).","m2",2686.06,{"$f":"IF(B61>0,VLOOKUP(B61,PU,3,0),0)","v":{"v":42.66,"d":"$42.66"}},{"$f":"IF(B61>0,VLOOKUP(B61,PU,5,0),0)","v":"CUARENTA Y DOS PESOS 66/100 M.N."},{"$f":"IF(B61>0,VLOOKUP(B61,PU,4,0),0)","v":{"v":114587.32,"d":"$114,587.32"}}]
["Concepto","3.2.2","         Suministro de matacan de 2\" - 8\", espesor de 0.30 m, libre de particulas finas incluye; suministro, acarreos dentro de la obra necesarios para su correcta ejecución. (incluye: especificación particular y general).","m3",537.21,{"v":220.78,"d":"$220.78"},"DOSCIENTOS VEINTE PESOS 78/100 M.N.",{"v":118605.22,"d":"$118,605.22"}]
["Concepto","3.2.3","         Tratamiento de matacan de 2\"- 8\" para zona de corte, incluye: afine, escarificación, incorporación de humedad, bandeo hasta lograr su acomodo y compactado al 95% de su PVSM determinado mediante las pruebas PROCTOR o AASHTO según se requiera. Supervisión y laboratorio sólo checarán y recibirán tramos completos. (incluye: especificación particular y general).","m3",537.21,{"v":36.62,"d":"$36.62"},"TREINTA Y SEIS PESOS 62/100 M.N.",{"v":19672.63,"d":"$19,672.63"}]
["Concepto","3.2.4","         Suministro de sub-base hidráulica, espesor de 0.15 m, incluye: solo suministro puesto en obra medido suelto, de acuerdo a las normas vigentes S.C.T., A.S.T.M., Y NMX. (incluye: especificación particular y general).","m3",523.78,{"v":157.46,"d":"$157.46"},"CIENTO CINCUENTA Y SIETE PESOS 46/100 M.N.",{"v":82474.4,"d":"$82,474.40"}]
["Concepto","3.2.5","         Tratamiento de sub-base hidráulica, incluye: afine, escarificación, incorporación de humedad y compactado al 100 % de su PVSM determinado mediante las pruebas PROCTOR o AASHTO según se requiera. Supervisión y laboratorio sólo checarán y recibirán tramos completos. (incluye: especificación particular y general).","m3",402.91,{"v":91.33,"d":"$91.33"},"NOVENTA Y UN PESOS 33/100 M.N.",{"v":36797.77,"d":"$36,797.77"}]
["Concepto","3.2.6","         Suministro de base hidráulica triturada, espesor de 0.20 m, incluye: solo suministro puesto en obra medido suelto, de acuerdo a las normas vigentes S.C.T., A.S.T.M., Y NMX. (incluye: especificación particular y general).","m3",698.37,{"v":356.88,"d":"$356.88"},"TRESCIENTOS CINCUENTA Y SEIS PESOS 88/100 M.N.",{"v":249234.29,"d":"$249,234.29"}]
["Concepto","3.2.7","         Tratamiento de base hidráulica triturada, incluye: afine, escarificación, incorporación de humedad y compactado al 100 % de su PVSM determinado mediante las pruebas PROCTOR o AASHTO según se requiera. Supervisión y laboratorio sólo checarán y recibirán tramos completos. (incluye: especificación particular y general).","m3",537.21,{"v":120.65,"d":"$120.65"},"CIENTO VEINTE PESOS 65/100 M.N.",{"v":64814.39,"d":"$64,814.39"}]
["Concepto","3.2.8","         Impregnacion de la base con emulsion asfaltica de rompimiento lento a razon de 1.2 a 1.5 lt/m2. Incluye limpieza de superficie. (incluye: especificación particular y general).","m2",2686.06,{"v":23.08,"d":"$23.08"},"VEINTITRES PESOS 08/100 M.N.",{"v":61994.26,"d":"$61,994.26"}]
["Concepto","3.2.9","         Poreo a base de arena n° 8 en proporcion de 6 a 8 lt/m2, incluye; suministro, acarreos dentro de la obra necesarios para su correcta ejecución. (incluye: especificación particular y general).","m2",2686.06,{"v":2.24,"d":"$2.24"},"DOS PESOS 24/100 M.N.",{"v":6016.77,"d":"$6,016.77"}]
["Nivel 3",3.3,"      CARPETA ASFALTICA",{"$nulls":4},{"$f":"SUM(H71:H72)","v":{"v":589240.9800000001,"d":"$589,240.98"}}]
["Concepto","3.3.1","         Riego de liga a base de emulsión asfáltica rr-2k de acuerdo a normas s.c.t. vigentes (0.3 a 0.5) lts/m2, el cual podrá variar en función de las condiciones de la superficie por tender. (incluye: especificación particular y general).","m2",2686.06,{"$f":"IF(B71>0,VLOOKUP(B71,PU,3,0),0)","v":{"v":8.56,"d":"$8.56"}},{"$f":"IF(B71>0,VLOOKUP(B71,PU,5,0),0)","v":"OCHO PESOS 56/100 M.N."},{"$f":"IF(B71>0,VLOOKUP(B71,PU,4,0),0)","v":{"v":22992.67,"d":"$22,992.67"}}]
["Concepto","3.3.2","         Suministro y colocación de carpeta asfáltica elaborado en planta, con cemento asfaltico ac-20 y agregado triturado calizo total máximo de 3/4\" a finos de 4.0 cms de espesor compactados, 100% de su p.v.s.m., de acuerdo a las normas vigentes de la s.c.t. incluye limpieza del tramo. (incluye: especificación particular y general).","m2",2686.06,{"$f":"IF(B72>0,VLOOKUP(B72,PU,3,0),0)","v":{"v":210.81,"d":"$210.81"}},{"$f":"IF(B72>0,VLOOKUP(B72,PU,5,0),0)","v":"DOSCIENTOS DIEZ PESOS 81/100 M.N."},{"$f":"IF(B72>0,VLOOKUP(B72,PU,4,0),0)","v":{"v":566248.31,"d":"$566,248.31"}}]
["Subcapítulo",4,"   GRADAS",{"$nulls":4},{"$f":"H74+H79+H87","v":{"v":580270.5,"d":"$580,270.50"}}]
["Nivel 3",4.1,"      PRELIMINARES",{"$nulls":4},{"$f":"SUM(H75:H78)","v":{"v":43999.5,"d":"$43,999.50"}}]
["Concepto","4.1.1","         Trazo y nivelación de área a intervenir; Incluye: material, mano de obra, herramienta, y todo lo necesario para su correcta ejecución. (incluye: especificación particular y general).","m2",{"v":1000,"d":"1000.00"},{"$f":"IF(B75>0,VLOOKUP(B75,PU,3,0),0)","v":{"v":5.11,"d":"$5.11"}},{"$f":"IF(B75>0,VLOOKUP(B75,PU,5,0),0)","v":"CINCO PESOS 11/100 M.N."},{"$f":"IF(B75>0,VLOOKUP(B75,PU,4,0),0)","v":{"v":5110,"d":"$5,110.00"}}]
["Concepto","4.1.2","         Corte por medios mecánicos, para albergar terracerias para mejoramiento de terreno, hasta una profundidad promedio de 1.00 m, incluye: material, mano de obra, herramienta, equipo y todo lo necesario para su correcta ejecución. (incluye: especificación particular y general).","m3",{"v":300,"d":"300.00"},{"$f":"IF(B76>0,VLOOKUP(B76,PU,3,0),0)","v":{"v":36.64,"d":"$36.64"}},{"$f":"IF(B76>0,VLOOKUP(B76,PU,5,0),0)","v":"TREINTA Y SEIS PESOS 64/100 M.N."},{"$f":"IF(B76>0,VLOOKUP(B76,PU,4,0),0)","v":{"v":10992,"d":"$10,992.00"}}]
["Concepto","4.1.3","         Carga y acarreo a tiro libre fuera de la obra de material producto de excavación, demoliciones, en camión, hasta una distancia promedio de 5 km. (incluye: especificación particular y general).","m3",{"v":390,"d":"390.00"},{"$f":"IF(B77>0,VLOOKUP(B77,PU,3,0),0)","v":{"v":54.25,"d":"$54.25"}},{"$f":"IF(B77>0,VLOOKUP(B77,PU,5,0),0)","v":"CINCUENTA Y CUATRO PESOS 25/100 M.N."},{"$f":"IF(B77>0,VLOOKUP(B77,PU,4,0),0)","v":{"v":21157.5,"d":"$21,157.50"}}]
["Concepto","4.1.4","         Limpieza durante y final de obra, incluye; mano de obra, equipo, herramientas, y todo lo necesario para su correcta ejecución. (incluye: especificación particular y general).","m2",{"v":1000,"d":"1000.00"},{"$f":"IF(B78>0,VLOOKUP(B78,PU,3,0),0)","v":{"v":6.74,"d":"$6.74"}},{"$f":"IF(B78>0,VLOOKUP(B78,PU,5,0),0)","v":"SEIS PESOS 74/100 M.N."},{"$f":"IF(B78>0,VLOOKUP(B78,PU,4,0),0)","v":{"v":6740,"d":"$6,740.00"}}]
["Nivel 3",4.2,"      TERRACERIAS",{"$nulls":4},{"$f":"SUM(H80:H86)","v":{"v":262118.8,"d":"$262,118.80"}}]
["Concepto","4.2.1","         Tratamiento de terreno natural para formar un piso compacto en un espesor de 20 cm, incluye;  afine, sin escarificar, incorporación de humedad, eliminando las particulas mayores a 3\" y compactado al 95%  de su PVSM determinado mediante las pruebas PROCTOR o AASHTO según se requiera.  Supervisión y laboratorio sólo checarán y recibirán tramos completos en caso de ser calles aisladas. (incluye: especificación particular y general).","m2",{"v":1000,"d":"1000.00"},{"$f":"IF(B80>0,VLOOKUP(B80,PU,3,0),0)","v":{"v":42.66,"d":"$42.66"}},{"$f":"IF(B80>0,VLOOKUP(B80,PU,5,0),0)","v":"CUARENTA Y DOS PESOS 66/100 M.N."},{"$f":"IF(B80>0,VLOOKUP(B80,PU,4,0),0)","v":{"v":42660,"d":"$42,660.00"}}]
["Concepto","4.2.2","         Suministro de matacan de 2\" - 8\", espesor de 0.30 m, libre de particulas finas incluye; suministro, acarreos dentro de la obra necesarios para su correcta ejecución. (incluye: especificación particular y general).","m3",{"v":300,"d":"300.00"},{"v":220.78,"d":"$220.78"},"DOSCIENTOS VEINTE PESOS 78/100 M.N.",{"v":66234,"d":"$66,234.00"}]
["Concepto","4.2.3","         Tratamiento de matacan de 2\"- 8\" para zona de corte, incluye: afine, escarificación, incorporación de humedad, bandeo hasta lograr su acomodo y compactado al 95% de su PVSM determinado mediante las pruebas PROCTOR o AASHTO según se requiera. Supervisión y laboratorio sólo checarán y recibirán tramos completos. (incluye: especificación particular y general).","m3",{"v":300,"d":"300.00"},{"v":36.62,"d":"$36.62"},"TREINTA Y SEIS PESOS 62/100 M.N.",{"v":10986,"d":"$10,986.00"}]
["Concepto","4.2.4","         Suministro de base hidráulica triturada, espesor de 0.20 m, incluye: solo suministro puesto en obra medido suelto, de acuerdo a las normas vigentes S.C.T., A.S.T.M., Y NMX. (incluye: especificación particular y general).","m3",{"v":260,"d":"260.00"},{"v":356.88,"d":"$356.88"},"TRESCIENTOS CINCUENTA Y SEIS PESOS 88/100 M.N.",{"v":92788.8,"d":"$92,788.80"}]
["Concepto","4.2.5","         Tratamiento de base hidráulica triturada, incluye: afine, escarificación, incorporación de humedad y compactado al 100 % de su PVSM determinado mediante las pruebas PROCTOR o AASHTO según se requiera. Supervisión y laboratorio sólo checarán y recibirán tramos completos. (incluye: especificación particular y general).","m3",{"v":200,"d":"200.00"},{"v":120.65,"d":"$120.65"},"CIENTO VEINTE PESOS 65/100 M.N.",{"v":24130,"d":"$24,130.00"}]
["Concepto","4.2.6","         Impregnacion de la base con emulsion asfaltica de rompimiento lento a razon de 1.2 a 1.5 lt/m2. Incluye limpieza de superficie. (incluye: especificación particular y general).","m2",{"v":1000,"d":"1000.00"},{"v":23.08,"d":"$23.08"},"VEINTITRES PESOS 08/100 M.N.",{"v":23080,"d":"$23,080.00"}]
["Concepto","4.2.7","         Poreo a base de arena n° 8 en proporcion de 6 a 8 lt/m2, incluye; suministro, acarreos dentro de la obra necesarios para su correcta ejecución. (incluye: especificación particular y general).","m2",{"v":1000,"d":"1000.00"},{"v":2.24,"d":"$2.24"},"DOS PESOS 24/100 M.N.",{"v":2240,"d":"$2,240.00"}]
["Nivel 3",4.3,"      CARPETA DE CONCRETO",{"$nulls":4},{"$f":"SUM(H88:H90)","v":{"v":274152.2,"d":"$274,152.20"}}]
["Concepto","4.3.1","         Tendido de carpeta de concreto hidráulico MR= 42.5 de 0.1504 m de espesor (6\") con un ancho de losa no mayor de 3.60 m, junta longitudinal con varilla corrugada de 1/2\" de 45 cm @ 60 cm, junta transversal aserrada a 1/3 del espesor de la losa de profundidad y la separación entre juntas no mayor de 24 espesores. (concreto suministrado por municipio), (incluye: especificación particular y general)."," m2",{"v":1000,"d":"1000.00"},{"$f":"IF(B88>0,VLOOKUP(B88,PU,3,0),0)","v":{"v":148.31,"d":"$148.31"}},{"$f":"IF(B88>0,VLOOKUP(B88,PU,5,0),0)","v":"CIENTO CUARENTA Y OCHO PESOS 31/100 M.N."},{"$f":"IF(B88>0,VLOOKUP(B88,PU,4,0),0)","v":{"v":148310,"d":"$148,310.00"}}]
["Concepto","4.3.2","         Suministro y habilitado de acero de refuerzo del #3 @ 0.40m en ambos sentidos, para retícula para losa de concreto, incluye: Material, mano de obra, herramienta, equipo, limpieza del lugar de trabajo, y todo lo necesario para su correcta ejecución. (incluye: especificación particular y general).","kg",{"v":2795,"d":"2795.00"},{"$f":"IF(B89>0,VLOOKUP(B89,PU,3,0),0)","v":{"v":39.24,"d":"$39.24"}},{"$f":"IF(B89>0,VLOOKUP(B89,PU,5,0),0)","v":"TREINTA Y NUEVE PESOS 24/100 M.N."},{"$f":"IF(B89>0,VLOOKUP(B89,PU,4,0),0)","v":{"v":109675.8,"d":"$109,675.80"}}]
["Concepto","4.3.3","         Corte y sellado de juntas en concreto aserrada a 1/3 del espesor de la losa de profundidad, separación entre juntas no mayor de 22 espesores en ambos sentidos, colocación de cola de rata 1/4\" a una profundidad de 2.0\" aplicacion de Sellador Ultralastic de 2 componentes catalizado, autonivelante, mca. Comex. Incluye: aspirado, limpieza, corte, retiro de exceso, materiales, mano de obra y lo necesario para su correcta construcción. (incluye: especificación particular y general)."," m",{"v":640,"d":"640.00"},{"$f":"IF(B90>0,VLOOKUP(B90,PU,3,0),0)","v":{"v":25.26,"d":"$25.26"}},{"$f":"IF(B90>0,VLOOKUP(B90,PU,5,0),0)","v":"VEINTICINCO PESOS 26/100 M.N."},{"$f":"IF(B90>0,VLOOKUP(B90,PU,4,0),0)","v":{"v":16166.4,"d":"$16,166.40"}}]
["Subcapítulo",5,"   ÁREA DE EXHIBICIÓN",{"$nulls":4},{"$f":"H92+H98+H108","v":{"v":298466.53,"d":"$298,466.53"}}]
["Nivel 3",5.1,"      PRELIMINARES",{"$nulls":4},{"$f":"SUM(H93:H97)","v":{"v":31238.489999999998,"d":"$31,238.49"}}]
["Concepto","5.1.1","         Trazo y nivelación de área a intervenir; Incluye: material, mano de obra, herramienta, y todo lo necesario para su correcta ejecución. (incluye: especificación particular y general).","m2",533.98,{"$f":"IF(B93>0,VLOOKUP(B93,PU,3,0),0)","v":{"v":5.11,"d":"$5.11"}},{"$f":"IF(B93>0,VLOOKUP(B93,PU,5,0),0)","v":"CINCO PESOS 11/100 M.N."},{"$f":"IF(B93>0,VLOOKUP(B93,PU,4,0),0)","v":{"v":2728.64,"d":"$2,728.64"}}]
["Concepto","5.1.2","         Despalme por medios mecánicos, para albergar terracerias para mejoramiento de terreno, hasta una profundidad promedio de 0.35 m, incluye: mano de obra, herramienta, equipo, maquinaria y todo lo necesario para su correcta ejecución. (incluye: especificación particular y general).","m3",186.07,{"$f":"IF(B94>0,VLOOKUP(B94,PU,3,0),0)","v":{"v":20.96,"d":"$20.96"}},{"$f":"IF(B94>0,VLOOKUP(B94,PU,5,0),0)","v":"VEINTE PESOS 96/100 M.N."},{"$f":"IF(B94>0,VLOOKUP(B94,PU,4,0),0)","v":{"v":3900.03,"d":"$3,900.03"}}]
["Concepto","5.1.3","         Corte por medios mecánicos, para albergar terracerias para mejoramiento de terreno, hasta una profundidad promedio de 1.00 m, incluye: material, mano de obra, herramienta, equipo y todo lo necesario para su correcta ejecución. (incluye: especificación particular y general).","m3",73.61,{"$f":"IF(B95>0,VLOOKUP(B95,PU,3,0),0)","v":{"v":36.64,"d":"$36.64"}},{"$f":"IF(B95>0,VLOOKUP(B95,PU,5,0),0)","v":"TREINTA Y SEIS PESOS 64/100 M.N."},{"$f":"IF(B95>0,VLOOKUP(B95,PU,4,0),0)","v":{"v":2697.07,"d":"$2,697.07"}}]
["Concepto","5.1.4","         Carga y acarreo a tiro libre fuera de la obra de material producto de excavación, demoliciones, en camión, hasta una distancia promedio de 5 km. (incluye: especificación particular y general).","m3",337.58,{"$f":"IF(B96>0,VLOOKUP(B96,PU,3,0),0)","v":{"v":54.25,"d":"$54.25"}},{"$f":"IF(B96>0,VLOOKUP(B96,PU,5,0),0)","v":"CINCUENTA Y CUATRO PESOS 25/100 M.N."},{"$f":"IF(B96>0,VLOOKUP(B96,PU,4,0),0)","v":{"v":18313.72,"d":"$18,313.72"}}]
["Concepto","5.1.5","         Limpieza durante y final de obra, incluye; mano de obra, equipo, herramientas, y todo lo necesario para su correcta ejecución. (incluye: especificación particular y general).","m2",533.98,{"$f":"IF(B97>0,VLOOKUP(B97,PU,3,0),0)","v":{"v":6.74,"d":"$6.74"}},{"$f":"IF(B97>0,VLOOKUP(B97,PU,5,0),0)","v":"SEIS PESOS 74/100 M.N."},{"$f":"IF(B97>0,VLOOKUP(B97,PU,4,0),0)","v":{"v":3599.03,"d":"$3,599.03"}}]
["Nivel 3",5.2,"      TERRACERIAS",{"$nulls":4},{"$f":"SUM(H99:H107)","v":{"v":150088.85,"d":"$150,088.85"}}]
["Concepto","5.2.1","         Tratamiento de terreno natural para formar un piso compacto en un espesor de 20 cm, incluye;  afine, sin escarificar, incorporación de humedad, eliminando las particulas mayores a 3\" y compactado al 95%  de su PVSM determinado mediante las pruebas PROCTOR o AASHTO según se requiera.  Supervisión y laboratorio sólo checarán y recibirán tramos completos en caso de ser calles aisladas. (incluye: especificación particular y general).","m2",533.98,{"$f":"IF(B99>0,VLOOKUP(B99,PU,3,0),0)","v":{"v":42.66,"d":"$42.66"}},{"$f":"IF(B99>0,VLOOKUP(B99,PU,5,0),0)","v":"CUARENTA Y DOS PESOS 66/100 M.N."},{"$f":"IF(B99>0,VLOOKUP(B99,PU,4,0),0)","v":{"v":22779.59,"d":"$22,779.59"}}]
["Concepto","5.2.2","         Suministro de matacan de 2\" - 8\", espesor de 0.30 m, libre de particulas finas incluye; suministro, acarreos dentro de la obra necesarios para su correcta ejecución. (incluye: especificación particular y general).","m3",106.79,{"v":220.78,"d":"$220.78"},"DOSCIENTOS VEINTE PESOS 78/100 M.N.",{"v":23577.1,"d":"$23,577.10"}]
["Concepto","5.2.3","         Tratamiento de matacan de 2\"- 8\" para zona de corte, incluye: afine, escarificación, incorporación de humedad, bandeo hasta lograr su acomodo y compactado al 95% de su PVSM determinado mediante las pruebas PROCTOR o AASHTO según se requiera. Supervisión y laboratorio sólo checarán y recibirán tramos completos. (incluye: especificación particular y general).","m3",106.79,{"v":36.62,"d":"$36.62"},"TREINTA Y SEIS PESOS 62/100 M.N.",{"v":3910.65,"d":"$3,910.65"}]
["Concepto","5.2.4","         Suministro de sub-base hidráulica, incluye: solo suministro puesto en obra medido suelto, de acuerdo a las normas vigentes S.C.T., A.S.T.M., Y NMX. (incluye: especificación particular y general).","m3",104.12,{"v":157.46,"d":"$157.46"},"CIENTO CINCUENTA Y SIETE PESOS 46/100 M.N.",{"v":16394.74,"d":"$16,394.74"}]
["Concepto","5.2.5","         Tratamiento de sub-base hidráulica, incluye: afine, escarificación, incorporación de humedad y compactado al 100 % de su PVSM determinado mediante las pruebas PROCTOR o AASHTO según se requiera. Supervisión y laboratorio sólo checarán y recibirán tramos completos. (incluye: especificación particular y general).","m3",{"v":80.1,"d":"80.10"},{"v":93.34,"d":"$93.34"},"NOVENTA Y TRES PESOS 34/100 M.N.",{"v":7476.53,"d":"$7,476.53"}]
["Concepto","5.2.6","         Suministro de base hidráulica, incluye: solo suministro puesto en obra medido suelto, de acuerdo a las normas vigentes S.C.T., A.S.T.M., Y NMX. (incluye: especificación particular y general)."," m3",138.83,{"v":356.88,"d":"$356.88"},"TRESCIENTOS CINCUENTA Y SEIS PESOS 88/100 M.N.",{"v":49545.65,"d":"$49,545.65"}]
["Concepto","5.2.7","         Tratamiento de base hidráulica, incluye: afine, escarificación, incorporación de humedad y compactado al 100 % de su PVSM determinado mediante las pruebas PROCTOR o AASHTO según se requiera. Supervisión y laboratorio sólo checarán y recibirán tramos completos. (incluye: especificación particular y general).","m3",106.79,{"v":120.65,"d":"$120.65"},"CIENTO VEINTE PESOS 65/100 M.N.",{"v":12884.21,"d":"$12,884.21"}]
["Concepto","5.2.8","         Impregnacion de la base con emulsion asfaltica de rompimiento lento a razon de 1.2 a 1.5 lt/m2. Incluye limpieza de superficie. (incluye: especificación particular y general).","m2",533.98,{"v":23.08,"d":"$23.08"},"VEINTITRES PESOS 08/100 M.N.",{"v":12324.26,"d":"$12,324.26"}]
["Concepto","5.2.9","         Poreo a base de arena n° 8 en proporcion de 6 a 8 lt/m2, incluye; suministro, acarreos dentro de la obra necesarios para su correcta ejecución. (incluye: especificación particular y general).","m2",533.98,{"v":2.24,"d":"$2.24"},"DOS PESOS 24/100 M.N.",{"v":1196.12,"d":"$1,196.12"}]
["Nivel 3",5.3,"      CARPETA ASFALTICA",{"$nulls":4},{"$f":"SUM(H109:H110)","v":{"v":117139.19,"d":"$117,139.19"}}]
["Concepto","5.3.1","         Riego de liga a base de emulsión asfáltica rr-2k de acuerdo a normas s.c.t. vigentes (0.3 a 0.5) lts/m2, el cual podrá variar en función de las condiciones de la superficie por tender. (incluye: especificación particular y general).","m2",533.98,{"$f":"IF(B109>0,VLOOKUP(B109,PU,3,0),0)","v":{"v":8.56,"d":"$8.56"}},{"$f":"IF(B109>0,VLOOKUP(B109,PU,5,0),0)","v":"OCHO PESOS 56/100 M.N."},{"$f":"IF(B109>0,VLOOKUP(B109,PU,4,0),0)","v":{"v":4570.87,"d":"$4,570.87"}}]
["Concepto","5.3.2","         Suministro y colocación de carpeta asfáltica elaborado en planta, con cemento asfaltico ac-20 y agregado triturado calizo total máximo de 3/4\" a finos de 4.0 cms de espesor compactados, 100% de su p.v.s.m., de acuerdo a las normas vigentes de la s.c.t. incluye limpieza del tramo. (incluye: especificación particular y general).","m2",533.98,{"$f":"IF(B110>0,VLOOKUP(B110,PU,3,0),0)","v":{"v":210.81,"d":"$210.81"}},{"$f":"IF(B110>0,VLOOKUP(B110,PU,5,0),0)","v":"DOSCIENTOS DIEZ PESOS 81/100 M.N."},{"$f":"IF(B110>0,VLOOKUP(B110,PU,4,0),0)","v":{"v":112568.32,"d":"$112,568.32"}}]
[]
[{"$nulls":5},"Sub-Total",null,{"$f":"H6","v":{"v":10610501.52,"d":"$10,610,501.52"}}]
[{"$nulls":5},"I.V.A.",null,{"$f":"H112*0.16","v":{"v":1697680.2432,"d":"$1,697,680.24"}}]
[{"$nulls":5},"Total",null,{"$f":"SUM(H112:H113)","v":{"v":12308181.7632,"d":"$12,308,181.76"}}]